Workbook

Sheet паспорт
A1: ПАТ "УКРТРАНСГАЗ" | G1: ПАСПОРТ ФІЗИКО-ХІМІЧНИХ ПОКАЗНИКІВ ПРИРОДНОГО ГАЗУ № 134
A2: Філія "УМГ "КИЇВТРАНСГАЗ" | G2: переданого Диканським ЛВУМГ та прийнятого ПАТ "Харківгаз"
A3: Решетилівський п/м Диканське ЛВУМГ | G3: Маршрут № 134
A4: Вимірювальна хіміко-аналітична лабораторія | K4: Газопровід - підвід УКПГ Кегичівка
A5: Свідоцтво № 123/15 чинно до 31.12.2018 р. | K5: по газопроводу "ШЕБЕЛИНКА-ДИКАНЬКА-КИЇВ" | V5: за період з | X5: 2017-05-01 | Z5: по | AA5: 2017-05-31
A7: Число місяця | B7: Компонентний склад, % мол. | N7: Фізико-хімічні показники газу обчислені на основі компонентного складу, 101,325 кПа | X7: Температура точки роси за вологою (Р = 3.92 МПа), ºС | Y7: Температура точки роси за вуглеводнями, ºС | Z7: Вміст сірководню, г/м3 | AA7: Вміст меркаптанової сірки, г/м3 | AB7: Вміст механічних домішок, г/м3
N8: Густина абсолютна, кг/м3,при 20 ºС, | O8: Температура вимірювання/згоряння при 20/25°С
B9: метан, С1 | C9: етан, С2 | D9: пропан, С3 | E9: ізо-бутан, і-С4 | F9: н-бутан, н-С4 | G9: нео-пентан, нео-С5 | H9: ізо-пентан, і-С5 | I9: н-пентан, н-С5 | J9: гексани та вищі, С6+ | K9: кисень, О2 | L9: азот, N2 | M9: діоксид вуглецю, CО2 | O9: Теплота згоряння нижча | R9: Теплота згоряння вища | U9: Число Воббе вище
O10: ккал/м3 | P10: МДж/м3 | Q10: кВт⋅год/м3 | R10: ккал/м3 | S10: МДж/м3 | T10: кВт⋅год/м3 | U10: ккал/м3 | V10: МДж/м3 | W10: кВт⋅год/м3
A11: 1 | O11: 8377 | P11: 35.07 | Q11: 9.741666667 | R11: 9279.163215 | S11: 38.85 | T11: 10.79166667 | AC11: =SUM(B11:M11)+$K$42+$N$42 -> 0
A12: 2 | O12: 8377 | P12: 35.07 | Q12: 9.741666667 | R12: =S12*238.8459 -> 9279.163215 | S12: 38.85 | T12: 10.79166667 | AC12: 0
A13: 3 | O13: 8377 | P13: 35.07 | Q13: 9.741666667 | R13: 9279.163215 | S13: 38.85 | T13: 10.79166667 | AC13: 0 | AD13: =IF(AC13=100,"ОК"," ") -> 
A14: 4 | O14: 8377 | P14: 35.07 | Q14: 9.741666667 | R14: 9279.163215 | S14: 38.85 | T14: 10.79166667 | AC14: 0 | AD14: =IF(AC14=100,"ОК"," ") -> 
A15: 5 | O15: 8377 | P15: 35.07 | Q15: 9.741666667 | R15: 9279.163215 | S15: 38.85 | T15: 10.79166667 | AC15: 0
A16: 6 | O16: 8377 | P16: 35.07 | Q16: 9.741666667 | R16: 9279.163215 | S16: 38.85 | T16: 10.79166667 | AC16: 0
A17: 7 | O17: 8377 | P17: 35.07 | Q17: 9.741666667 | R17: 9279.163215 | S17: 38.85 | T17: 10.79166667 | AC17: 0
A18: 8 | O18: 8377 | P18: 35.07 | Q18: 9.741666667 | R18: 9279.163215 | S18: 38.85 | T18: 10.79166667 | AC18: 0
A19: 9 | O19: 8377 | P19: 35.07 | Q19: 9.741666667 | R19: 9279.163215 | S19: 38.85 | T19: 10.79166667 | AC19: 0
A20: 10 | O20: 8377 | P20: 35.07 | Q20: 9.741666667 | R20: 9279.163215 | S20: 38.85 | T20: 10.79166667 | X20: 23.9 | Y20: 3.8 | AB20: відсут. | AC20: 0
A21: 11 | O21: 8377 | P21: 35.07 | Q21: 9.741666667 | R21: 9279.163215 | S21: 38.85 | T21: 10.79166667 | AC21: 0
A22: 12 | B22: 92.737 | C22: 3.9683 | D22: 0.9239 | E22: 0.1341 | F22: 0.1863 | G22: 0.0044 | H22: 0.0603 | I22: 0.0486 | J22: 0.2005 | K22: 0.0048 | L22: 1.453 | M22: 0.2789 | N22: 0.727 | O22: 8357 | P22: 34.99 | Q22: 9.719444444 | R22: 9260 | S22: 38.77 | T22: 10.76944444 | U22: 11918 | V22: 49.9 | W22: 13.86111111 | Z22: <0,006 | AA22: <0,02 | AC22: 100.0001
A23: 13 | O23: 8357 | P23: 34.99 | Q23: 9.719444444 | R23: =S23*238.8459 -> 9260.055543 | S23: 38.77 | T23: 10.76944444 | AC23: 0
A24: 14 | O24: 8357 | P24: 34.99 | Q24: 9.719444444 | R24: =S24*238.8459 -> 9260.055543 | S24: 38.77 | T24: 10.76944444 | AC24: 0
A25: 15 | O25: 8357 | P25: 34.99 | Q25: 9.719444444 | R25: 9260 | S25: 38.77 | T25: 10.76944444 | AC25: 0
A26: 16 | O26: 8357 | P26: 34.99 | Q26: 9.719444444 | R26: 9260 | S26: 38.77 | T26: 10.76944444 | X26: 24.6 | Y26: 9.1 | AC26: 0
A27: 17 | O27: 8357 | P27: 34.99 | Q27: 9.719444444 | R27: 9260 | S27: 38.77 | T27: 10.76944444 | AC27: 0
A28: 18 | B28: 92.7586 | C28: 3.9818 | D28: 0.9276 | E28: 0.1342 | F28: 0.186 | G28: 0.0058 | H28: 0.0588 | I28: 0.0476 | J28: 0.1515 | K28: 0.0048 | L28: 1.4665 | M28: 0.2769 | N28: 0.7257 | O28: 8343 | P28: 34.93 | Q28: 9.702777778 | R28: 9243 | S28: 38.7 | T28: 10.75 | U28: 11906 | V28: 49.85 | W28: 13.84722222 | AC28: 100.0001
A29: 19 | O29: 8343 | P29: 34.93 | Q29: 9.702777778 | R29: 9243 | S29: 38.7 | T29: 10.75 | AC29: 0
A30: 20 | O30: 8343 | P30: 34.93 | Q30: 9.702777778 | R30: 9243 | S30: 38.7 | T30: 10.75 | AC30: 0 | AD30: =IF(AC30=100,"ОК"," ") -> 
A31: 21 | O31: 8343 | P31: 34.93 | Q31: 9.702777778 | R31: 9243 | S31: 38.7 | T31: 10.75 | AC31: 0
A32: 22 | O32: 8343 | P32: 34.93 | Q32: 9.702777778 | R32: 9243 | S32: 38.7 | T32: 10.75 | AC32: 0
A33: 23 | O33: 8343 | P33: 34.93 | Q33: 9.702777778 | R33: 9243 | S33: 38.7 | T33: 10.75 | X33: 29.1 | Y33: 9 | AC33: 0 | AD33: =IF(AC33=100,"ОК"," ") -> 
A34: 24 | O34: 8343 | P34: 34.93 | Q34: 9.702777778 | R34: 9243 | S34: 38.7 | T34: 10.75 | AC34: 0
A35: 25 | B35: 92.7342 | C35: 3.9849 | D35: 0.9286 | E35: 0.1345 | F35: 0.1866 | G35: 0.0054 | H35: 0.0585 | I35: 0.0467 | J35: 0.1554 | K35: 0.0046 | L35: 1.4818 | M35: 0.2789 | N35: 0.726 | O35: 8343 | P35: 34.93 | Q35: 9.702777778 | R35: 9243 | S35: 38.7 | T35: 10.75 | U35: 11906 | V35: 49.85 | W35: 13.84722222 | AC35: 100.0001
A36: 26 | O36: 8343 | P36: 34.93 | Q36: 9.702777778 | R36: =S36*238.8459 -> 9243.33633 | S36: 38.7 | T36: 10.75 | AC36: 0
A37: 27 | O37: 8343 | P37: 34.93 | Q37: 9.702777778 | R37: 9243 | S37: 38.7 | T37: 10.75 | AC37: 0
A38: 28 | O38: 8343 | P38: 34.93 | Q38: 9.702777778 | R38: 9243 | S38: 38.7 | T38: 10.75 | AC38: 0
A39: 29 | O39: 8343 | P39: 34.93 | Q39: 9.702777778 | R39: 9243 | S39: 38.7 | T39: 10.75 | X39: 29.2 | Y39: 9 | AC39: 0
A40: 30 | O40: 8343 | P40: 34.93 | Q40: 9.702777778 | R40: 9243 | S40: 38.7 | T40: 10.75 | AC40: 0
A41: 31 | B41: 92.8519 | C41: 3.9229 | D41: 0.9123 | E41: 0.132 | F41: 0.1835 | G41: 0.0059 | H41: 0.0586 | I41: 0.0475 | J41: 0.1639 | K41: 0.0046 | L41: 1.4398 | M41: 0.2772 | N41: 0.7254 | O41: 8343 | P41: 34.93 | Q41: 9.702777778 | R41: 9243 | S41: 38.7 | T41: 10.75 | U41: 11909 | V41: 49.86 | W41: 13.85 | AC41: 100.0001
A42: Рівень одоризації відповідає чинним нормативним документам | O42: =SUMPRODUCT(O11:O41,' розрахунок'!D7:D37)/' розрахунок'!D38 -> 8356.89474 | P42: =SUMPRODUCT(P11:P41,' розрахунок'!D7:D37)/' розрахунок'!D38 -> 34.98784835 | Q42: =SUMPRODUCT(Q11:Q41,' розрахунок'!D7:D37)/' розрахунок'!D38 -> 9.718846765 | R42: =SUMPRODUCT(R11:R41,' розрахунок'!D7:D37)/' розрахунок'!D38 -> 9258.36053 | S42: =SUMPRODUCT(S11:S41,' розрахунок'!D7:D37)/' розрахунок'!D38 -> 38.76352184 | T42: =SUMPRODUCT(T11:T41,' розрахунок'!D7:D37)/' розрахунок'!D38 -> 10.76764496
H43: Середньозважене значення теплоти згоряння:
B46: Заступник начальника управління Диканського ЛВУМГ | O46: Герасименко І.М. | V46: 01.06.17р.
C47: Підрозділу підприємства, якому підпорядкована лабораторія | O47: прізвище | R47: підпис | V47: дата
B48: Завідувач лабораторією | O48: Славінська А.В. | V48: =V46 -> 01.06.17р.
C49: Лабораторія, де здійснювалось вимірювання газу | O49: прізвище | R49: підпис | V49: дата
B50: Начальник служби ГВ та М | O50: Левадний С.А. | V50: =V46 -> 01.06.17р.
C51: Підрозділу, відповідального за облік газу за маршрутом | O51: прізвище | R51: підпис | V51: дата

Sheet розрахунок
A2: Додаток до Паспорту фізико-хімічних показників природного газу по маршруту № 134
A4: Число місяця | B4: Теплота згоряння вища, МДж/м3 | C4: Харківська область | D4: Загальний обсяг газу, м3
C5: Обсяг газу переданого за добу, м3
C6: ГРС Старовірівка
A7: 1 | B7: =паспорт!S11 -> 38.85 | C7: 1410.71 | D7: =SUM(C7:C7) -> 1410.71
A8: 2 | B8: =паспорт!S12 -> 38.85 | C8: 1084.04 | D8: 1084.04
A9: 3 | B9: =паспорт!S13 -> 38.85 | C9: 1270.32 | D9: 1270.32
A10: 4 | B10: =паспорт!S14 -> 38.85 | C10: 1023.75 | D10: 1023.75
A11: 5 | B11: =паспорт!S15 -> 38.85 | C11: 1251.29 | D11: 1251.29
A12: 6 | B12: =паспорт!S16 -> 38.85 | C12: 1360.47 | D12: 1360.47
A13: 7 | B13: =паспорт!S17 -> 38.85 | C13: 1446.93 | D13: 1446.93
A14: 8 | B14: =паспорт!S18 -> 38.85 | C14: 1220.84 | D14: 1220.84
A15: 9 | B15: =паспорт!S19 -> 38.85 | C15: 1466.27 | D15: 1466.27
A16: 10 | B16: =паспорт!S20 -> 38.85 | C16: 1597.09 | D16: 1597.09
A17: 11 | B17: =паспорт!S21 -> 38.85 | C17: 2242.96 | D17: 2242.96
A18: 12 | B18: =паспорт!S22 -> 38.77 | C18: 2706.46 | D18: 2706.46
A19: 13 | B19: =паспорт!S23 -> 38.77 | C19: 3550.42 | D19: 3550.42
A20: 14 | B20: =паспорт!S24 -> 38.77 | C20: 2690.09 | D20: 2690.09
A21: 15 | B21: =паспорт!S25 -> 38.77 | C21: 2105.34 | D21: 2105.34
A22: 16 | B22: =паспорт!S26 -> 38.77 | C22: 1172.79 | D22: 1172.79
A23: 17 | B23: =паспорт!S27 -> 38.77 | C23: 1711.41 | D23: 1711.41
A24: 18 | B24: =паспорт!S28 -> 38.7 | C24: 2293.87 | D24: 2293.87
A25: 19 | B25: =паспорт!S29 -> 38.7 | C25: 2763.97 | D25: 2763.97
A26: 20 | B26: =паспорт!S30 -> 38.7 | C26: 2829.46 | D26: 2829.46
A27: 21 | B27: =паспорт!S31 -> 38.7 | C27: 2441.96 | D27: 2441.96
A28: 22 | B28: =паспорт!S32 -> 38.7 | C28: 1642.9 | D28: 1642.9
A29: 23 | B29: =паспорт!S33 -> 38.7 | C29: 1274.27 | D29: 1274.27
A30: 24 | B30: =паспорт!S34 -> 38.7 | C30: 1234.45 | D30: 1234.45
A31: 25 | B31: =паспорт!S35 -> 38.7 | C31: 1370.66 | D31: 1370.66
A32: 26 | B32: =паспорт!S36 -> 38.7 | C32: 930.32 | D32: 930.32
A33: 27 | B33: =паспорт!S37 -> 38.7 | C33: 1355.36 | D33: 1355.36
A34: 28 | B34: =паспорт!S38 -> 38.7 | C34: 1117.4 | D34: 1117.4
A35: 29 | B35: =паспорт!S39 -> 38.7 | C35: 1071.33 | D35: 1071.33
A36: 30 | B36: =паспорт!S40 -> 38.7 | C36: 952.07 | D36: 952.07
A37: 31 | B37: =паспорт!S41 -> 38.7 | C37: 1074.23 | D37: 1074.23
A38: Загальний обсяг газу, м3 | C38: =SUM(C7:C37) -> 51663.43 | D38: =SUM(D7:D37) -> 51663.43
A39: Енергія, МДж | C39: =SUMPRODUCT(B7:B37,C7:C37) -> 2002656.497 | D39: =SUMPRODUCT(B7:B37,D7:D37) -> 2002656.497
A40: Теплота згоряння (середньозважене значення за місяць), МДж/м³ | C40: =C39/C38 -> 38.76352184 | D40: =D39/D38 -> 38.76352184
A41: Теплота згоряння (середньозважене значення за місяць), ккал/м³ | C41: =C40*238.8459 -> 9258.508261 | D41: =D40*238.8459 -> 9258.508261
A42: Теплота згоряння (середньозважене значення за місяць), кВт*год./м³ | C42: =C40/3.6 -> 10.76764496 | D42: =D40/3.6 -> 10.76764496

Sheet додаток
A2: Додаток до Паспорту фізико-хімічних показників природного газу №134
A4: Область | B4: ГРС, прямий споживач | C4: Cередньозважене значення вищої теплоти згоряння
C5: МДж/м³ | D5: ккал/м³ | E5: кВт*год./м³
A6: Харківська область | B6: ГРС Старовірівка | C6: =' розрахунок'!C40 -> 38.76352184 | D6: 9258 | E6: =' розрахунок'!C42 -> 10.76764496
A7: Середньозважене значення вищої теплоти згоряння по маршруту № 134 | C7: =' розрахунок'!D40 -> 38.76352184 | D7: 9258 | E7: =' розрахунок'!D42 -> 10.76764496
A11: Заступник начальника управління Диканського ЛВУМГ | D11: Герасименко І.М. | F11: =паспорт!V46 -> 01.06.17р.
A12: Підрозділу підприємства, якому підпорядкована лабораторія | D12: прізвище | E12: підпис | F12: дата
A13: Завідувач лабораторією | D13: Славінська А.В. | F13: =F11 -> 01.06.17р.
A14: Лабораторія, де здійснювалось вимірювання газу | D14: прізвище | E14: підпис | F14: дата
A15: Начальник служби ГВ та М | D15: Левадний С.А. | F15: =F11 -> 01.06.17р.
A16: Підрозділу, відповідального за облік газу за маршрутом | D16: прізвище | E16: підпис | F16: дата

Sheet variablesList (hidden)
A1: 3 | B1: x:\gaysin | C1: 10, 11, 24, 25, 127, 128, 132, 180, 207, 215 | D1: x:\
B2: x:\Illinci
B3: x:\Talne
